fUST/lending_fUST_20240726
["ID","MTS","AMOUNT","RATE_DAILY","PERIOD"]
[333238922,1721963452983,-748.08,0.00014246,2]
[333238923,1721963452993,-500.0,0.00014246,2]
[333238924,1721963453004,-1414.01,0.00014246,2]
[333238925,1721963453015,-561.886476,0.00014246,2]
[333238926,1721963453025,-561.886476,0.00014246,2]
[333238927,1721963453036,-500.0,0.00014246,2]
[333238928,1721963453049,-561.886476,0.00014246,2]
[333238929,1721963453061,-561.886476,0.00014246,2]
[333238930,1721963453072,-1349.148235,0.00014246,2]
[333238931,1721963453084,-1349.148235,0.00014246,2]
[333238932,1721963453095,-1349.148235,0.00014246,2]
[333238933,1721963453108,-1428.056274,0.00014246,2]
[333238934,1721963453119,-1349.148235,0.00014246,2]
[333238935,1721963453130,-1428.056274,0.00014246,2]
[333238936,1721963453142,-500.0,0.00014246,2]
[333238937,1721963453151,-654.54,0.00014246,2]
[333238938,1721963453160,-1428.056274,0.00014246,2]
[333238939,1721963453171,-1428.056274,0.00014246,2]
[333238940,1721963453182,-500.0,0.00014246,2]
[333238941,1721963453191,-500.0,0.00014246,2]
[333238942,1721963453201,-500.0,0.00014246,2]
[333238943,1721963453211,-500.0,0.00014246,2]
[333238944,1721963453220,-897.89,0.00014246,2]
[333238945,1721963453230,-226.68746589,0.00014246,2]
[333238946,1721963453239,-594.95,0.00014246,2]
[333238947,1721963453249,-500.0,0.00014246,2]
[333238948,1721963453258,-889.3,0.00014246,2]
[333238949,1721963453268,-500.0,0.00014246,2]
[333238950,1721963453279,-740.14,0.00014246,2]
[333238951,1721963453290,-153.678574,0.00014246,2]
[333238952,1721963453301,-500.0,0.00014246,2]
[333238953,1721963453312,-500.0,0.00014246,2]
[333238954,1721963453323,-512.71042562,0.00014246,2]
[333238955,1721963453334,-500.0,0.00014246,2]
[333238956,1721963453345,-660.93,0.00014246,2]
[333238957,1721963453357,-1137.1,0.00014246,2]
[333238958,1721963453368,-1574.82,0.00014246,2]
[333238959,1721963453378,-1165.37,0.00014246,2]
[333238960,1721963453388,-1272.79,0.00014246,2]
[333238961,1721963453401,-842.18,0.00014246,2]
[333238962,1721963453411,-2839.49,0.00014246,2]
[333238963,1721963453421,-3111.58,0.00014246,2]
[333238964,1721963453431,-659.16,0.00014246,2]
[333238965,1721963453441,-500.0,0.00014246,2]
[333238966,1721963453452,-760.76,0.00014246,2]
[333238967,1721963453464,-6474.4,0.00014246,2]
[333238968,1721963453477,-1338.08,0.00014246,2]
[333238969,1721963453486,-1083.92,0.00014246,2]
[333238970,1721963453497,-908.98,0.00014246,2]
[333238971,1721963453508,-500.0,0.00014246,2]
[333238972,1721963453519,-500.0,0.00014246,2]
[333238973,1721963453530,-1634.95,0.00014246,2]
[333238974,1721963453540,-500.0,0.00014246,2]
[333238975,1721963453550,-766.26,0.00014246,2]
[333238976,1721963453560,-776.73,0.00014246,2]
[333238977,1721963453570,-500.0,0.00014246,2]
[333238978,1721963453580,-2357.35,0.00014246,2]
[333238979,1721963453590,-937.508423,0.00014246,2]
[333238980,1721963453599,-937.508423,0.00014246,2]
[333238981,1721963453609,-937.508423,0.00014246,2]
[333238982,1721963453619,-509.51,0.00014246,2]
[333238983,1721963453628,-500.0,0.00014246,2]
[333238984,1721963453638,-937.508423,0.00014246,2]
[333238985,1721963453651,-937.508423,0.00014246,2]
[333238986,1721963453661,-500.0,0.00014246,2]
[333238987,1721963453670,-937.508432,0.00014246,2]
[333238988,1721963453680,-1362.6,0.00014246,2]
[333238989,1721963453690,-500.0,0.00014246,2]
[333238990,1721963453699,-574.02,0.00014246,2]
[333238991,1721963453709,-500.0,0.00014246,2]
[333238992,1721963453718,-272.37734654,0.00014246,2]
[333238993,1721963453728,-804.06,0.00014246,2]
[333238994,1721963453738,-1369.49,0.00014246,2]
[333238995,1721963453748,-500.0,0.00014246,2]
[333238996,1721963453758,-500.0,0.00014246,2]
[333238997,1721963453767,-500.0,0.00014246,2]
[333238998,1721963453777,-804.07,0.00014246,2]
[333238999,1721963453787,-500.0,0.00014246,2]
[333239000,1721963453797,-1280.05,0.00014246,2]
[333239001,1721963453807,-214.875887,0.00014246,2]
[333239002,1721963453817,-214.875887,0.00014246,2]
[333239003,1721963453827,-214.875887,0.00014246,2]
[333239004,1721963453837,-214.875887,0.00014246,2]
[333239005,1721963453847,-214.875887,0.00014246,2]
[333239006,1721963453857,-214.875888,0.00014246,2]
[333239007,1721963453866,-500.0,0.00014246,2]
[333239008,1721963453876,-578.06,0.00014246,2]
[333239009,1721963453886,-976.12,0.00014246,2]
[333239010,1721963453899,-500.0,0.00014246,2]
[333239011,1721963453909,-1228.84,0.00014246,2]
[333239012,1721963453918,-2193.74,0.00014246,2]
[333239013,1721963453928,-500.0,0.00014246,2]
[333239014,1721963453941,-1269.4,0.00014246,2]
[333239015,1721963453951,-500.0,0.00014246,2]
[333239016,1721963453960,-6841.19,0.00014246,2]
[333239017,1721963453969,-500.0,0.00014246,2]
[333239018,1721963453983,-500.0,0.00014246,2]
[333239019,1721963453991,-737.42,0.00014246,2]
[333239020,1721963454001,-523.86207582,0.00014246,2]
[333239021,1721963454010,-1173.52,0.00014246,2]
[333239022,1721963454021,-500.0,0.00014246,2]
[333239023,1721963454031,-1733.3,0.00014246,2]
[333239024,1721963454040,-523.811806,0.00014246,2]
[333239025,1721963454051,-626.11,0.00014246,2]
[333239026,1721963454062,-523.811806,0.00014246,2]
[333239027,1721963454074,-500.0,0.00014246,2]
[333239028,1721963454084,-523.811806,0.00014246,2]
[333239029,1721963454094,-523.811806,0.00014246,2]
[333239030,1721963454103,-500.0,0.00014246,2]
[333239031,1721963454115,-767.68,0.00014246,2]
[333239032,1721963454125,-500.0,0.00014246,2]
[333239033,1721963454134,-1234.17,0.00014246,2]
[333239034,1721963454147,-500.0,0.00014246,2]
[333239035,1721963454158,-500.0,0.00014246,2]
[333239036,1721963454168,-500.0,0.00014246,2]
[333239037,1721963454178,-500.0,0.00014246,2]
[333239038,1721963454188,-788.22,0.00014246,2]
[333239039,1721963454199,-7835.74,0.00014246,2]
[333239040,1721963454209,-2455.85,0.00014246,2]
[333239041,1721963454219,-572.37,0.00014246,2]
[333239042,1721963454229,-500.0,0.00014246,2]
[333239043,1721963454239,-544.53,0.00014246,2]
[333239044,1721963454248,-500.0,0.00014246,2]
[333239045,1721963454258,-3318.86,0.00014246,2]
[333239046,1721963454267,-1128.85,0.00014246,2]
[333239047,1721963454277,-4398.22,0.00014246,2]
[333239048,1721963454290,-1174.13,0.00014246,2]
[333239049,1721963454300,-500.0,0.00014246,2]
[333239050,1721963454309,-459.557831,0.00014246,2]
[333239051,1721963813353,10000.0,0.00025,120]
[333239052,1721963855733,1602.0,0.0001,10]
[333239054,1721964399303,-200.0,0.00013425,2]
[333239055,1721964399327,-100.79321484,0.00013598,2]
[333239100,1721964639788,-434.6287768,9.999e-05,2]
[333239101,1721964639798,-300.0,0.00013597,2]
[333239102,1721964639808,-7526.2952353,0.00013598,2]
[333239103,1721964639817,-2000.0,0.00013598,2]
[333239104,1721964639826,-13248.8165247,0.00013678,2]
[333239105,1721964639835,-7981.11499638,0.00013688,2]
[333239110,1721964640888,-4527.01559577,0.00013688,2]
[333239129,1721964647797,-866.73563841,0.00013688,2]
[333239130,1721964647809,-4310.31011651,0.00013688,2]
[333239137,1721964910071,35591.68,0.00024,60]
[333239138,1721964945250,885.02,0.00024,60]
[333239139,1721965813484,5000.0,0.00025,120]
[333239200,1721965832655,-4325.38830703,0.00012385,2]
[333239201,1721965832714,-1004.25000015,0.00012385,2]
[333239397,1721965838674,-41.82664312,0.00012385,2]
[333239399,1721965838685,-300.0,0.00012999,2]
[333239400,1721965838695,-12002.25499591,0.00013,2]
[333239402,1721965838705,-367.53930495,0.00013273,2]
[333239404,1721965838721,-5307.44717969,0.00013299,2]
[333239406,1721965838731,-176.18952928,0.00013425,2]
[333239473,1721965840572,-23.81047072,0.00013425,2]
[333239474,1721965840582,-233.7444477,0.000135,2]
[333239476,1721965840591,-153.0,0.000135,2]
[333239478,1721965840602,-501.73277668,0.00013698,2]
[333239480,1721965840611,-503.61433218,0.00013698,2]
[333239482,1721965840620,-500.0,0.00013698,2]
[333239484,1721965840630,-500.0,0.00013698,2]
[333239486,1721965840639,-500.0,0.00013698,2]
[333239488,1721965840648,-576.97556221,0.00013698,2]
[333239490,1721965840657,-501.50437028,0.00013698,2]
[333239491,1721965840666,-507.20628239,0.00013698,2]
[333239493,1721965840675,-506.24815418,0.00013698,2]
[333239495,1721965840685,-500.0,0.00013698,2]
[333239497,1721965840694,-236.96465992,0.00013698,2]
[333239500,1721965840703,-505.30884357,0.00013698,2]
[333239502,1721965840716,-500.95844773,0.00013698,2]
[333239504,1721965840726,-500.0,0.00013698,2]
[333239506,1721965840735,-500.0,0.00013698,2]
[333239508,1721965840744,-500.0,0.00013698,2]
[333239509,1721965840754,-640.54637123,0.00013698,2]
[333239511,1721965840763,-500.0,0.00013698,2]
[333239513,1721965840773,-500.0,0.00013698,2]
[333239515,1721965840782,-500.0,0.00013698,2]
[333239517,1721965840794,-500.0,0.00013698,2]
[333239519,1721965840803,-550.54050196,0.00013698,2]
[333239521,1721965840813,-500.0,0.00013698,2]
[333239523,1721965840823,-500.0,0.00013698,2]
[333239525,1721965840833,-500.0,0.00013698,2]
[333239526,1721965840842,-500.0,0.00013698,2]
[333239528,1721965840854,-500.0,0.00013698,2]
[333239530,1721965840863,-500.0,0.00013698,2]
[333239532,1721965840872,-500.0,0.00013698,2]
[333239534,1721965840882,-500.0,0.00013698,2]
[333239535,1721965840891,-500.0,0.00013698,2]
[333239537,1721965840900,-500.0,0.00013698,2]
[333239539,1721965840909,-500.0,0.00013698,2]
[333239541,1721965840918,-432.37090017,0.00013698,2]
[333239543,1721965840927,-500.0,0.00013698,2]
[333239544,1721965840935,-500.0,0.00013698,2]
[333239546,1721965840945,-504.23758031,0.00013698,2]
[333239548,1721965840954,-503.8757368,0.00013698,2]
[333239550,1721965840963,-500.0,0.00013698,2]
[333239552,1721965840972,-512.0384615,0.00013698,2]
[333239554,1721965840982,-524.45,0.00013698,2]
[333239556,1721965840992,-500.0,0.00013698,2]
[333239558,1721965841002,-445.50083456,0.00013698,2]
[333239560,1721965841011,-505.60113204,0.00013698,2]
[333239562,1721965841022,-505.60284264,0.00013698,2]
[333239564,1721965841033,-500.0,0.00013698,2]
[333239566,1721965841043,-500.0,0.00013698,2]
[333239568,1721965841053,-500.0,0.00013698,2]
[333239570,1721965841063,-674.63,0.00013698,2]
[333239572,1721965841076,-571.06,0.00013698,2]
[333239574,1721965841086,-500.0,0.00013698,2]
[333239576,1721965841096,-500.0,0.00013698,2]
[333239578,1721965841105,-500.0,0.00013698,2]
[333239580,1721965841116,-501.53796063,0.00013698,2]
[333239582,1721965841127,-505.97444456,0.00013698,2]
[333239584,1721965841137,-555.82786213,0.00013698,2]
[333239585,1721965841146,-500.0,0.00013698,2]
[333239587,1721965841155,-500.0,0.00013698,2]
[333239589,1721965841165,-513.62782091,0.00013698,2]
[333239591,1721965841174,-500.0,0.00013698,2]
[333239593,1721965841183,-500.0,0.00013698,2]
[333239595,1721965841193,-500.0,0.00013698,2]
[333239596,1721965841203,-513.92849081,0.00013698,2]
[333239598,1721965841212,-500.0,0.00013698,2]
[333239600,1721965841222,-500.0,0.00013698,2]
[333239602,1721965841231,-500.0,0.00013698,2]
[333239604,1721965841241,-1131.25,0.00013698,2]
[333239606,1721965841251,-513.00394085,0.00013698,2]
[333239608,1721965841261,-500.83751423,0.00013698,2]
[333239610,1721965841271,-500.0,0.00013698,2]
[333239612,1721965841280,-500.0,0.00013698,2]
[333239614,1721965841290,-516.77693941,0.00013698,2]
[333239616,1721965841300,-500.0,0.00013698,2]
[333239618,1721965841309,-500.0,0.00013698,2]
[333239620,1721965841319,-500.0,0.00013698,2]
[333239622,1721965841330,-501.67690239,0.00013698,2]
[333239624,1721965841339,-509.80395528,0.00013698,2]
[333239626,1721965841348,-500.0,0.00013698,2]
[333239628,1721965841358,-500.0,0.00013698,2]
[333239630,1721965841367,-500.0,0.00013698,2]
[333239632,1721965841378,-500.0,0.00013698,2]
[333239633,1721965841388,-500.0,0.00013698,2]
[333239634,1721965841398,-510.54800537,0.00013698,2]
[333239635,1721965841407,-500.0,0.00013698,2]
[333239636,1721965841416,-500.0,0.00013698,2]
[333239637,1721965841426,-500.0,0.00013698,2]
[333239638,1721965841435,-1126.84,0.00013698,2]
[333239639,1721965841446,-562.6930076,0.00013698,2]
[333239640,1721965841455,-500.0,0.00013698,2]
[333239641,1721965841465,-500.0,0.00013698,2]
[333239642,1721965841475,-507.39836349,0.00013698,2]
[333239643,1721965841484,-500.0,0.00013698,2]
[333239644,1721965841493,-500.0,0.00013698,2]
[333239645,1721965841502,-512.14634915,0.00013698,2]
[333239646,1721965841521,-500.0,0.00013698,2]
[333239647,1721965841532,-500.0,0.00013698,2]
[333239648,1721965841542,-500.0,0.00013698,2]
[333239649,1721965841552,-484.74491256,0.00013698,2]
[333239650,1721965841561,-502.77452337,0.00013698,2]
[333239651,1721965841572,-592.86738694,0.00013698,2]
[333239652,1721965841582,-506.9181094,0.00013698,2]
[333239653,1721965841592,-500.0,0.00013698,2]
[333239654,1721965841602,-509.44834222,0.00013698,2]
[333239655,1721965841612,-500.0,0.00013698,2]
[333239656,1721965841621,-500.0,0.00013698,2]
[333239657,1721965841631,-502.49066998,0.00013698,2]
[333239658,1721965841640,-506.86964681,0.00013698,2]
[333239659,1721965841650,-500.0,0.00013698,2]
[333239660,1721965841660,-1024.65,0.00013698,2]
[333239661,1721965841671,-505.87563239,0.00013698,2]
[333239662,1721965841681,-1102.4,0.00013698,2]
[333239663,1721965841691,-506.38197011,0.00013698,2]
[333239664,1721965841703,-507.10437537,0.00013698,2]
[333239666,1721965841715,-506.35269349,0.00013698,2]
[333239668,1721965841729,-982.13,0.00013698,2]
[333239670,1721965841740,-982.13,0.00013698,2]
[333239672,1721965841750,-982.13,0.00013698,2]
[333239674,1721965841762,-982.13,0.00013698,2]
[333239676,1721965841773,-500.0,0.00013698,2]
[333239679,1721965841785,-982.13,0.00013698,2]
[333239681,1721965841798,-500.0,0.00013698,2]
[333239683,1721965841810,-982.13,0.00013698,2]
[333239685,1721965841822,-982.13,0.00013698,2]
[333239687,1721965841833,-982.13,0.00013698,2]
[333239690,1721965841846,-982.13,0.00013698,2]
[333239692,1721965841857,-982.13,0.00013698,2]
[333239694,1721965841869,-523.89,0.00013698,2]
[333239696,1721965841880,-982.13,0.00013698,2]
[333239698,1721965841892,-982.13,0.00013698,2]
[333239700,1721965841904,-982.13,0.00013698,2]
[333239702,1721965841914,-982.13,0.00013698,2]
[333239705,1721965841925,-982.13,0.00013698,2]
[333239707,1721965841937,-500.0,0.00013698,2]
[333239709,1721965841947,-982.13,0.00013698,2]
[333239711,1721965841958,-982.13,0.00013698,2]
[333239713,1721965841970,-500.0,0.00013698,2]
[333239716,1721965841980,-982.13,0.00013698,2]
[333239718,1721965841991,-982.13,0.00013698,2]
[333239720,1721965842002,-982.13,0.00013698,2]
[333239722,1721965842012,-534.68855558,0.00013698,2]
[333239724,1721965842022,-982.13,0.00013698,2]
[333239726,1721965842032,-982.13,0.00013698,2]
[333239728,1721965842043,-982.13,0.00013698,2]
[333239730,1721965842052,-501.2481524,0.00013698,2]
[333239732,1721965842061,-982.21,0.00013698,2]
[333239734,1721965842071,-500.0,0.00013698,2]
[333239737,1721965842081,-503.88218785,0.00013698,2]
[333239739,1721965842091,-500.0,0.00013698,2]
[333239741,1721965842101,-500.0,0.00013698,2]
[333239743,1721965842110,-507.48085616,0.00013698,2]
[333239745,1721965842120,-500.0,0.00013698,2]
[333239747,1721965842130,-519.81703122,0.00013698,2]
[333239749,1721965842139,-503.63376949,0.00013698,2]
[333239751,1721965842149,-506.98915833,0.00013698,2]
[333239753,1721965842158,-500.0,0.00013698,2]
[333239755,1721965842167,-500.0,0.00013698,2]
[333239757,1721965842177,-500.0,0.00013698,2]
[333239759,1721965842187,-501.10551533,0.00013698,2]
[333239761,1721965842196,-635.04130408,0.00013698,2]
[333239763,1721965842206,-506.05120005,0.00013698,2]
[333239765,1721965842216,-500.0,0.00013698,2]
[333239767,1721965842226,-500.0,0.00013698,2]
[333239769,1721965842235,-763.28,0.00013698,2]
[333239771,1721965842245,-500.0,0.00013698,2]
[333239773,1721965842254,-507.20969745,0.00013698,2]
[333239775,1721965842265,-500.0,0.00013698,2]
[333239777,1721965842275,-500.0,0.00013698,2]
[333239779,1721965842284,-302.55066996,0.00013698,2]
[333239781,1721965842294,-819.2,0.00013698,2]
[333239783,1721965842303,-1002.76,0.00013698,2]
[333239785,1721965842313,-519.42437233,0.00013698,2]
[333239788,1721965842322,-500.0,0.00013698,2]
[333239790,1721965842332,-500.0,0.00013698,2]
[333239791,1721965842341,-500.0,0.00013698,2]
[333239794,1721965842351,-639.58,0.00013698,2]
[333239796,1721965842364,-500.0,0.00013698,2]
[333239798,1721965842374,-500.0,0.00013698,2]
[333239800,1721965842384,-500.0,0.00013698,2]
[333239802,1721965842393,-500.0,0.00013698,2]
[333239804,1721965842403,-500.0,0.00013698,2]
[333239806,1721965842412,-500.0,0.00013698,2]
[333239808,1721965842422,-500.63549699,0.00013698,2]
[333239810,1721965842431,-500.0,0.00013698,2]
[333239812,1721965842441,-500.0,0.00013698,2]
[333239814,1721965842451,-506.48476977,0.00013698,2]
[333239816,1721965842460,-500.0,0.00013698,2]
[333239818,1721965842470,-649.83,0.00013698,2]
[333239821,1721965842480,-872.46,0.00013698,2]
[333239823,1721965842489,-507.56077782,0.00013698,2]
[333239825,1721965842498,-500.0,0.00013698,2]
[333239827,1721965842508,-500.0,0.00013698,2]
[333239829,1721965842517,-500.0,0.00013698,2]
[333239831,1721965842526,-500.0,0.00013698,2]
[333239833,1721965842536,-871.65,0.00013698,2]
[333239835,1721965842546,-500.0,0.00013698,2]
[333239837,1721965842555,-500.0,0.00013698,2]
[333239839,1721965842565,-500.0,0.00013698,2]
[333239841,1721965842576,-700.85,0.00013698,2]
[333239843,1721965842585,-500.0,0.00013698,2]
[333239845,1721965842595,-909.84,0.00013698,2]
[333239847,1721965842604,-500.0,0.00013698,2]
[333239849,1721965842614,-500.0,0.00013698,2]
[333239851,1721965842623,-500.0,0.00013698,2]
[333239853,1721965842632,-1167.49,0.00013698,2]
[333239855,1721965842642,-577.33,0.00013698,2]
[333239857,1721965842653,-501.70497388,0.00013698,2]
[333239859,1721965842662,-970.69,0.00013698,2]
[333239861,1721965842671,-500.0,0.00013698,2]
[333239863,1721965842680,-500.0,0.00013698,2]
[333239865,1721965842690,-500.0,0.00013698,2]
[333239867,1721965842699,-500.0,0.00013698,2]
[333239869,1721965842709,-520.12,0.00013698,2]
[333239871,1721965842723,-500.0,0.00013698,2]
[333239873,1721965842732,-500.0,0.00013698,2]
[333239876,1721965842742,-500.0,0.00013698,2]
[333239878,1721965842751,-502.67013176,0.00013698,2]
[333239880,1721965842762,-500.0,0.00013698,2]
[333239882,1721965842771,-500.0,0.00013698,2]
[333239884,1721965842780,-500.0,0.00013698,2]
[333239886,1721965842791,-500.0,0.00013698,2]
[333239888,1721965842800,-431.51282812,0.00013698,2]
[333239890,1721965842810,-500.0,0.00013698,2]
[333239892,1721965842820,-500.0,0.00013698,2]
[333239894,1721965842831,-500.0,0.00013698,2]
[333239896,1721965842842,-500.0,0.00013698,2]
[333239898,1721965842852,-432.29984313,0.00013698,2]
[333239900,1721965842861,-986.35,0.00013698,2]
[333239902,1721965842870,-501.21342524,0.00013698,2]
[333239904,1721965842880,-500.0,0.00013698,2]
[333239906,1721965842890,-500.0,0.00013698,2]
[333239908,1721965842899,-500.0,0.00013698,2]
[333239910,1721965842909,-500.0,0.00013698,2]
[333239912,1721965842918,-500.0,0.00013698,2]
[333239915,1721965842928,-470.00421233,0.00013698,2]
[333239917,1721965842938,-500.0,0.00013698,2]
[333239919,1721965842948,-500.0,0.00013698,2]
[333239921,1721965842957,-500.0,0.00013698,2]
[333239923,1721965842967,-500.0,0.00013698,2]
[333239925,1721965842976,-879.72,0.00013698,2]
[333239927,1721965842985,-500.0,0.00013698,2]
[333239929,1721965842995,-504.78094596,0.00013698,2]
[333239931,1721965843005,-500.0,0.00013698,2]
[333239933,1721965843015,-500.0,0.00013698,2]
[333239935,1721965843024,-457.54401741,0.00013698,2]
[333239937,1721965843033,-500.0,0.00013698,2]
[333239939,1721965843043,-500.0,0.00013698,2]
[333239941,1721965843052,-500.0,0.00013698,2]
[333239943,1721965843062,-500.0,0.00013698,2]
[333239945,1721965843073,-500.0,0.00013698,2]
[333239973,1721965843289,-500.0,0.00013698,2]
[333239975,1721965843299,-500.0,0.00013698,2]
[333239977,1721965843309,-500.0,0.00013698,2]
[333239979,1721965843319,-500.0,0.00013698,2]
[333239981,1721965843329,-500.0,0.00013698,2]
[333239983,1721965843338,-502.36529503,0.00013698,2]
[333239985,1721965843348,-500.0,0.00013698,2]
[333239987,1721965843357,-500.0,0.00013698,2]
[333239989,1721965843366,-500.0,0.00013698,2]
[333239991,1721965843375,-500.0,0.00013698,2]
[333239993,1721965843386,-500.0,0.00013698,2]
[333239995,1721965843395,-500.0,0.00013698,2]
[333239997,1721965843405,-500.0,0.00013698,2]
[333239999,1721965843415,-500.0,0.00013698,2]
[333240001,1721965843424,-500.0,0.00013698,2]
[333240003,1721965843434,-500.0,0.00013698,2]
[333240005,1721965843443,-259.32795271,0.00013698,2]
[333240007,1721965843452,-500.0,0.00013698,2]
[333240009,1721965843462,-500.0,0.00013698,2]
[333240011,1721965843472,-504.46436506,0.00013698,2]
[333240013,1721965843481,-504.45439226,0.00013698,2]
[333240015,1721965843490,-500.0,0.00013698,2]
[333240017,1721965843500,-1340.71,0.00013698,2]
[333240019,1721965843510,-500.0,0.00013698,2]
[333240021,1721965843519,-853.61,0.00013698,2]
[333240023,1721965843528,-500.0,0.00013698,2]
[333240025,1721965843538,-500.0,0.00013698,2]
[333240027,1721965843547,-500.58453657,0.00013698,2]
[333240029,1721965843557,-500.0,0.00013698,2]
[333240031,1721965843568,-500.0,0.00013698,2]
[333240033,1721965843581,-624.41,0.00013698,2]
[333240035,1721965843590,-500.0,0.00013698,2]
[333240038,1721965843599,-500.0,0.00013698,2]
[333240040,1721965843609,-561.54,0.00013698,2]
[333240041,1721965843618,-500.0,0.00013698,2]
[333240043,1721965843628,-502.1295564,0.00013698,2]
[333240046,1721965843646,-502.99766997,0.00013698,2]
[333240048,1721965843658,-502.24128874,0.00013698,2]
[333240050,1721965843668,-500.0,0.00013698,2]
[333240053,1721965843678,-500.0,0.00013698,2]
[333240055,1721965843688,-500.0,0.00013698,2]
[333240057,1721965843698,-500.0,0.00013698,2]
[333240059,1721965843708,-500.0,0.00013698,2]
[333240061,1721965843722,-500.0,0.00013698,2]
[333240063,1721965843734,-500.0,0.00013698,2]
[333240065,1721965843745,-350.76287347,0.00013698,2]
[333240067,1721965843757,-500.0,0.00013698,2]
[333240069,1721965843767,-1104.72,0.00013698,2]
[333240072,1721965843778,-819.81,0.00013698,2]
[333240074,1721965843791,-517.0852034,0.00013698,2]
[333240076,1721965843802,-500.0,0.00013698,2]
[333240078,1721965843815,-515.31335447,0.00013698,2]
[333240080,1721965843827,-500.0,0.00013698,2]
[333240083,1721965843840,-500.0,0.00013698,2]
[333240084,1721965843851,-500.0,0.00013698,2]
[333240086,1721965843862,-500.0,0.00013698,2]
[333240088,1721965843873,-503.19222684,0.00013698,2]
[333240091,1721965843887,-500.0,0.00013698,2]
[333240093,1721965843899,-500.0,0.00013698,2]
[333240095,1721965843912,-846.13,0.00013698,2]
[333240097,1721965843922,-500.0,0.00013698,2]
[333240100,1721965843933,-500.0,0.00013698,2]
[333240102,1721965843944,-193.51712386,0.00013698,2]
[333240104,1721965843957,-500.0,0.00013698,2]
[333240106,1721965843968,-1121.51,0.00013698,2]
[333240108,1721965843979,-1121.51,0.00013698,2]
[333240111,1721965843989,-502.48752705,0.00013698,2]
[333240113,1721965843999,-1121.51,0.00013698,2]
[333240115,1721965844009,-1121.51,0.00013698,2]
[333240117,1721965844018,-1121.51,0.00013698,2]
[333240119,1721965844029,-1121.51,0.00013698,2]
[333240121,1721965844039,-1121.51,0.00013698,2]
[333240123,1721965844049,-1121.51,0.00013698,2]
[333240125,1721965844059,-500.0,0.00013698,2]
[333240127,1721965844069,-1121.51,0.00013698,2]
[333240129,1721965844081,-1121.51,0.00013698,2]
[333240131,1721965844091,-1121.51,0.00013698,2]
[333240133,1721965844104,-500.0,0.00013698,2]
[333240135,1721965844113,-1121.51,0.00013698,2]
[333240137,1721965844123,-1121.51,0.00013698,2]
[333240139,1721965844132,-1121.51,0.00013698,2]
[333240141,1721965844142,-1121.51,0.00013698,2]
[333240143,1721965844151,-504.3600509,0.00013698,2]
[333240145,1721965844163,-1121.51,0.00013698,2]
[333240147,1721965844172,-1121.51,0.00013698,2]
[333240149,1721965844181,-1121.51,0.00013698,2]
[333240151,1721965844191,-1121.51,0.00013698,2]
[333240153,1721965844204,-1121.51,0.00013698,2]
[333240155,1721965844214,-1121.51,0.00013698,2]
[333240157,1721965844224,-1121.51,0.00013698,2]
[333240159,1721965844235,-500.0,0.00013698,2]
[333240162,1721965844247,-500.0,0.00013698,2]
[333240164,1721965844257,-1121.51,0.00013698,2]
[333240166,1721965844268,-1121.67,0.00013698,2]
[333240168,1721965844278,-500.0,0.00013698,2]